fUST/lending_fUST_20260629
["ID","MTS","AMOUNT","RATE_DAILY","PERIOD"]
[426611508,1782672632000,-2681.09764504,0.00028896,2]
[426611510,1782672632000,-1958.17039662,0.00028896,2]
[426611496,1782672632000,-2147.06701969,0.00028896,2]
[426611500,1782672632000,-386.44542118,0.00028896,2]
[426611494,1782672632000,-300.0,0.00028896,2]
[426611492,1782672632000,-234.03062535,0.00028896,2]
[426611490,1782672632000,-2681.09764504,0.00028896,2]
[426611477,1782672632000,-121.84330685,0.00028774,2]
[426611484,1782672632000,-2681.09764504,0.00028896,2]
[426611486,1782672632000,-2681.09764504,0.00028896,2]
[426611498,1782672632000,-790.19999325,0.00028896,2]
[426611591,1782672639000,-2420.21715303,0.00028895,2]
[426611586,1782672639000,-992.01628141,0.00028895,2]
[426611590,1782672639000,-2420.21715303,0.00028895,2]
[426611588,1782672639000,-2420.21715303,0.00028895,2]
[426611583,1782672639000,-304.3740839,0.00028895,2]
[426611585,1782672639000,-2420.21715303,0.00028895,2]
[426611589,1782672639000,-2420.21715303,0.00028895,2]
[426611581,1782672639000,-2420.21715303,0.00028895,2]
[426611593,1782672639000,-2420.21715303,0.00028895,2]
[426611587,1782672639000,-1428.20087162,0.00028895,2]
[426611598,1782672639000,-2420.21715303,0.00028895,2]
[426611584,1782672639000,-2420.21715303,0.00028895,2]
[426611601,1782672639000,-2420.21715303,0.00028895,2]
[426611594,1782672639000,-2420.21715303,0.00028895,2]
[426611600,1782672639000,-2420.21715303,0.00028895,2]
[426611597,1782672639000,-2420.21715303,0.00028895,2]
[426611603,1782672639000,-167.18870083,0.00028979,2]
[426611595,1782672639000,-2420.21715303,0.00028895,2]
[426611596,1782672639000,-2420.21715303,0.00028895,2]
[426611592,1782672639000,-2420.21715303,0.00028895,2]
[426611599,1782672639000,-2420.21715303,0.00028895,2]
[426611606,1782672639000,-168931.33830726,0.00028997,2]
[426611605,1782672639000,-385453.85816303,0.00028997,2]
[426611604,1782672639000,-236.91678328,0.00028989,2]
[426611602,1782672639000,-500.0,0.00028896,2]
[426611695,1782672647000,-1593.6,0.00028997,2]
[426611694,1782672647000,-3073.75180131,0.00028997,2]
[426611727,1782673066000,320.81182996,0.000118,5]
[426611729,1782673302000,417.15472785,0.00028997,30]
[426612185,1782674617000,1998.68336954,0.00028997,120]
[426612287,1782675031000,-1000.35987896,0.00024552,2]
[426612434,1782675038000,-5169.04265364,0.00024552,2]
[426612436,1782675038000,-500.0,0.000252,2]
[426612435,1782675038000,-590.23364498,0.000252,5]
[426612437,1782675038000,-500.0,0.000252,2]
[426612439,1782675038000,-500.0,0.000252,2]
[426612438,1782675038000,-500.0,0.000252,2]
[426612440,1782675038000,-500.0,0.000252,2]
[426612443,1782675038000,-500.0,0.00025501,2]
[426612442,1782675038000,-655.6,0.00025501,2]
[426612446,1782675038000,-3201.33654141,0.00025602,2]
[426612441,1782675038000,-7337.87891094,0.00025402,2]
[426612447,1782675038000,-7486.64711643,0.00025702,2]
[426612453,1782675038000,-1984.57806548,0.00025795,2]
[426612456,1782675038000,-79.28034665,0.00025795,2]
[426612444,1782675038000,-7337.87891094,0.00025502,2]
[426612451,1782675038000,-1984.57806548,0.00025795,2]
[426612449,1782675038000,-500.0,0.00025775,2]
[426612448,1782675038000,-655.6,0.00025775,2]
[426612452,1782675038000,-213.06185873,0.00025795,2]
[426612455,1782675038000,-1640.23866821,0.00025795,2]
[426612454,1782675038000,-344.33939727,0.00025795,2]
[426612445,1782675038000,-7486.64711643,0.00025602,2]
[426612450,1782675038000,-1984.57806548,0.00025795,2]
[426612471,1782675046000,-522.0,0.00025802,2]
[426612470,1782675046000,-3220.47039315,0.00025802,2]
[426612472,1782675122000,417.15472785,0.00028997,30]
[426612482,1782675256000,439.41087,0.000301,30]
[426612486,1782675445000,-154.98,0.00030137,120]
[426612484,1782675445000,-154.73,0.00030137,120]
[426612487,1782675445000,-154.98,0.00030137,120]
[426612485,1782675445000,-154.73,0.00030137,120]
[426612502,1782675446000,-153.58,0.00030137,120]
[426612500,1782675446000,-153.58,0.00030137,120]
[426612501,1782675446000,-153.58,0.00030137,120]
[426612498,1782675446000,-153.58,0.00030137,120]
[426612499,1782675446000,-153.58,0.00030137,120]
[426612497,1782675446000,-154.41,0.00030137,120]
[426612496,1782675446000,-154.41,0.00030137,120]
[426612495,1782675446000,-154.41,0.00030137,120]
[426612494,1782675446000,-154.41,0.00030137,120]
[426612491,1782675446000,-154.98,0.00030137,120]
[426612492,1782675446000,-154.41,0.00030137,120]
[426612490,1782675446000,-154.98,0.00030137,120]
[426612489,1782675446000,-154.98,0.00030137,120]
[426612488,1782675446000,-154.98,0.00030137,120]
[426612505,1782675446000,-153.23,0.00030137,120]
[426612493,1782675446000,-154.41,0.00030137,120]
[426612503,1782675446000,-153.58,0.00030137,120]
[426612506,1782675446000,-153.23,0.00030137,120]
[426612504,1782675446000,-153.23,0.00030137,120]
[426612521,1782675446000,-221.07656912,0.00032,120]
[426612520,1782675446000,-78.92343088,0.00032,120]
[426612519,1782675446000,-159.7,0.000319,120]
[426612518,1782675446000,-168.0,0.00031436,120]
[426612516,1782675446000,-2099.83656912,0.0003014,120]
[426612517,1782675446000,-159.7,0.000309,120]
[426612515,1782675446000,-153.64,0.00030137,120]
[426612522,1782675446000,-159.7,0.000329,120]
[426612514,1782675446000,-153.64,0.00030137,120]
[426612513,1782675446000,-153.64,0.00030137,120]
[426612507,1782675446000,-153.23,0.00030137,120]
[426612509,1782675446000,-153.23,0.00030137,120]
[426612523,1782675446000,-24.56343088,0.00033245,120]
[426612510,1782675446000,-153.64,0.00030137,120]
[426612511,1782675446000,-153.64,0.00030137,120]
[426612512,1782675446000,-153.64,0.00030137,120]
[426612508,1782675446000,-153.23,0.00030137,120]
[426612582,1782676192000,531964.8,0.0003,30]
[426612646,1782676232000,-433.45811007,0.00021092,2]
[426612650,1782676232000,-502.38125204,0.00021305,2]
[426612648,1782676232000,-426.45020991,0.00021305,2]
[426613015,1782676241000,-137.95968589,0.00022426,2]
[426613013,1782676241000,-996.12977011,0.00021759,2]
[426613009,1782676241000,-255.73043761,0.00021305,2]
[426613011,1782676241000,-187.26956238,0.00021759,2]
[426613006,1782676241000,-0.02201685,0.00021305,2]
[426613304,1782676339000,51954.0,0.0003,30]
[426613305,1782676438000,29345.1319118,0.00028999,120]
[426613328,1782676624000,1092.97945512,0.0001,2]
[426613332,1782676654000,43859.85131497,0.000118,5]
[426613335,1782676942000,417.15472785,0.00029002,30]
[426613444,1782677432000,-325.08711468,0.00013699,2]
[426613446,1782677432000,-971.58111,0.00014583,2]
[426613453,1782677432000,-742.753136,0.00014583,2]
[426613455,1782677432000,-151.0,0.00018,2]
[426613459,1782677432000,-464.25879048,0.00018266,2]
[426613463,1782677432000,-1043.5376963,0.00018636,2]
[426613457,1782677432000,-268.26675578,0.00018266,2]
[426613461,1782677432000,-725.40436012,0.00018266,2]
[426613473,1782677432000,-1000.0,0.00027777,5]
[426613467,1782677432000,-274.23,0.00027431,2]
[426613469,1782677432000,-580.203,0.00027581,2]
[426613475,1782677432000,-197.0,0.00028,2]
[426613477,1782677432000,-428.0,0.00028,2]
[426613479,1782677432000,-189.0,0.00028,2]
[426613480,1782677432000,-769.32575652,0.00028133,2]
[426613482,1782677432000,-160.0,0.00028342,2]
[426613484,1782677432000,-604.0,0.000288,2]
[426613488,1782677432000,-2390.72816601,0.00028899,2]
[426613486,1782677432000,-593.38001296,0.00028899,2]
[426613471,1782677432000,-186.0,0.00027581,2]
[426613464,1782677432000,-226.67,0.00027397,2]
[426613544,1782677441000,-3128.7095337,0.00028899,2]
[426613542,1782677441000,-225.0,0.00028,2]
[426613543,1782677441000,-815.33193334,0.00028899,2]
[426613547,1782677442000,-500.0,0.00028998,2]
[426613548,1782677442000,-1117.8194903,0.00028999,2]
[426613545,1782677442000,-1093.67666698,0.00028899,2]
[426613546,1782677442000,-600.97,0.00028998,2]
[426613587,1782677446000,-909.58,0.00028999,2]
[426613588,1782677446000,-2422.66,0.00028999,7]
[426613589,1782677446000,-418.64,0.00028999,2]
[426613592,1782677446000,-189.0,0.00029,2]
[426613603,1782677446000,-175.4,0.00029112,15]
[426613595,1782677446000,-500.0,0.00029003,2]
[426613598,1782677446000,-175.4,0.00029062,15]
[426613596,1782677446000,-175.4,0.00029012,15]
[426613594,1782677446000,-225.0,0.00029,2]
[426613597,1782677446000,-280.64,0.00029052,15]
[426613601,1782677446000,-280.64,0.00029102,15]
[426613602,1782677446000,-3000.0,0.0002911,2]
[426613604,1782677446000,-3000.0,0.0002912,2]
[426613608,1782677446000,-3000.0,0.0002915,2]
[426613605,1782677446000,-3000.0,0.0002913,2]
[426613613,1782677446000,-3000.0,0.0002918,2]
[426613616,1782677446000,-151.0,0.000292,11]
[426613609,1782677446000,-280.64,0.00029152,15]
[426613615,1782677446000,-3000.0,0.000292,2]
[426613614,1782677446000,-3000.0,0.0002919,2]
[426613612,1782677446000,-3000.0,0.0002917,2]
[426613606,1782677446000,-3000.0,0.0002914,2]
[426613591,1782677446000,-428.0,0.00029,2]
[426613599,1782677446000,-3000.0,0.000291,2]
[426613580,1782677446000,-50351.89135854,0.00028999,2]
[426613610,1782677446000,-3000.0,0.0002916,2]
[426613590,1782677446000,-197.0,0.00029,2]
[426613565,1782677446000,-52618.50376083,0.00028999,2]
[426613561,1782677446000,-147909.56755447,0.00028999,2]
[426613560,1782677446000,-576.99431739,0.00028133,2]
[426613563,1782677446000,-247.26652273,0.00028999,10]
[426613562,1782677446000,-20454.14434115,0.00028999,2]
[426613564,1782677446000,-200.25349348,0.00028999,12]
[426613566,1782677446000,-6406.76156163,0.00028999,2]
[426613574,1782677446000,-962.90113109,0.00028999,7]
[426613570,1782677446000,-158.0,0.00028999,10]
[426613572,1782677446000,-248.60265437,0.00028999,10]
[426613571,1782677446000,-348.82228143,0.00028999,10]
[426613584,1782677446000,-487.0,0.00028999,2]
[426613569,1782677446000,-181.2805248,0.00028999,7]
[426613567,1782677446000,-24862.52746099,0.00028999,2]
[426613568,1782677446000,-158.52428819,0.00028999,7]
[426613573,1782677446000,-151.12025367,0.00028999,7]
[426613578,1782677446000,-408764.70533027,0.00028999,2]
[426613576,1782677446000,-304.5324107,0.00028999,7]
[426613579,1782677446000,-3990.38954362,0.00028999,2]
[426613575,1782677446000,-466.4634889,0.00028999,7]
[426613583,1782677446000,-18029.7384836,0.00028999,2]
[426613582,1782677446000,-114489.63119161,0.00028999,2]
[426613585,1782677446000,-487.0,0.00028999,2]
[426613581,1782677446000,-9431.48198983,0.00028999,2]
[426613577,1782677446000,-3833.96435291,0.00028999,2]
[426613617,1782677446000,-151.0,0.000292,11]
[426613611,1782677446000,-175.4,0.00029162,15]
[426613624,1782677446000,-3000.0,0.0002925,2]
[426613654,1782677446000,-459.0131137,0.000296,2]
[426613647,1782677446000,-175.4,0.00029562,15]
[426613643,1782677446000,-175.4,0.00029512,15]
[426613652,1782677446000,-151.0,0.000296,2]
[426613651,1782677446000,-151.0,0.000296,2]
[426613648,1782677446000,-156.6911361,0.000296,2]
[426613649,1782677446000,-151.0,0.000296,2]
[426613664,1782677446000,-175.4,0.00029662,15]
[426613669,1782677446000,-151.0,0.000298,2]
[426613667,1782677446000,-280.64,0.00029752,15]
[426613665,1782677446000,-280.64,0.00029702,15]
[426613646,1782677446000,-280.64,0.00029552,15]
[426613666,1782677446000,-175.4,0.00029712,15]
[426613668,1782677446000,-175.4,0.00029762,15]
[426613658,1782677446000,-151.0,0.000296,2]
[426613656,1782677446000,-151.0,0.000296,2]
[426613662,1782677446000,-175.4,0.00029612,15]
[426613661,1782677446000,-280.64,0.00029602,15]
[426613663,1782677446000,-280.64,0.00029652,15]
[426613670,1782677446000,-151.0,0.000298,2]
[426613673,1782677446000,-280.64,0.00029802,15]
[426613672,1782677446000,-494.2564868,0.000298,2]
[426613674,1782677446000,-175.4,0.00029812,15]
[426613618,1782677446000,-280.64,0.00029202,15]
[426613657,1782677446000,-151.0,0.000296,2]
[426613650,1782677446000,-151.0,0.000296,2]
[426613659,1782677446000,-151.0,0.000296,2]
[426613644,1782677446000,-600.97,0.00029546,2]
[426613620,1782677446000,-175.4,0.00029212,15]
[426613645,1782677446000,-500.0,0.00029546,2]
[426613622,1782677446000,-3000.0,0.0002923,2]
[426613629,1782677446000,-600.97,0.00029272,2]
[426613625,1782677446000,-280.64,0.00029252,15]
[426613621,1782677446000,-3000.0,0.0002922,2]
[426613671,1782677446000,-340.3675207,0.000298,2]
[426613630,1782677446000,-500.0,0.00029272,2]
[426613627,1782677446000,-3227.961915,0.0002926,2]
[426613619,1782677446000,-3000.0,0.0002921,2]
[426613628,1782677446000,-175.4,0.00029262,15]
[426613631,1782677446000,-1238.657,0.000293,5]
[426613633,1782677446000,-365.6194,0.000293,2]
[426613623,1782677446000,-3000.0,0.0002924,2]
[426613634,1782677446000,-280.64,0.00029302,15]
[426613653,1782677446000,-151.0,0.000296,2]
[426613639,1782677446000,-175.4,0.00029412,15]
[426613635,1782677446000,-175.4,0.00029312,15]
[426613636,1782677446000,-280.64,0.00029352,15]
[426613632,1782677446000,-1238.65,0.000293,5]
[426613655,1782677446000,-327.6293158,0.000296,2]
[426613637,1782677446000,-175.4,0.00029362,15]
[426613641,1782677446000,-175.4,0.00029462,15]
[426613640,1782677446000,-280.64,0.00029452,15]
[426613638,1782677446000,-280.64,0.00029402,15]
[426613642,1782677446000,-280.64,0.00029502,15]
[426613716,1782677447000,-280.64,0.00030252,15]
[426613719,1782677447000,-175.4,0.00030312,15]
[426613717,1782677447000,-175.4,0.00030262,15]
[426613710,1782677447000,-620.86386811,0.00030137,30]
[426613715,1782677447000,-362.27636052,0.0003025,4]
[426613708,1782677447000,-151.0,0.00030137,6]
[426613712,1782677447000,-175.4,0.00030162,15]
[426613713,1782677447000,-280.64,0.00030202,15]
[426613711,1782677447000,-280.64,0.00030152,15]
[426613714,1782677447000,-175.4,0.00030212,15]
[426613718,1782677447000,-280.7,0.00030302,15]
[426613707,1782677447000,-151.0,0.00030137,6]
[426613731,1782677447000,-175.4,0.00030712,15]
[426613733,1782677447000,-175.4,0.00030812,15]
[426613732,1782677447000,-175.4,0.00030762,15]
[426613725,1782677447000,-175.4,0.00030512,15]
[426613724,1782677447000,-175.4,0.00030462,15]
[426613729,1782677447000,-600.97,0.00030642,2]
[426613730,1782677447000,-175.4,0.00030662,15]
[426613726,1782677447000,-175.4,0.00030562,15]
[426613720,1782677447000,-175.4,0.00030362,15]
[426613722,1782677447000,-1000.0,0.0003041,2]
[426613727,1782677447000,-186.0,0.00030581,2]
[426613728,1782677447000,-175.4,0.00030612,15]
[426613723,1782677447000,-175.4,0.00030412,15]
[426613744,1782677447000,-175.4,0.00031012,15]
[426613709,1782677447000,-637.27736221,0.00030137,30]
[426613721,1782677447000,-600.97,0.00030368,2]
[426613699,1782677447000,-175.4,0.00030062,15]
[426613683,1782677447000,-246.43,0.00029963,2]
[426613702,1782677447000,-500.0,0.000301,11]
[426613675,1782677447000,-600.97,0.0002982,2]
[426613677,1782677447000,-280.64,0.00029852,15]
[426613679,1782677447000,-280.64,0.00029902,15]
[426613681,1782677447000,-280.64,0.00029952,15]
[426613745,1782677447000,-175.4,0.00031062,15]
[426613682,1782677447000,-175.4,0.00029962,15]
[426613676,1782677447000,-312.8,0.0002982,2]
[426613680,1782677447000,-175.4,0.00029912,15]
[426613678,1782677447000,-175.4,0.00029862,15]
[426613689,1782677447000,-296.95155179,0.0003,7]
[426613690,1782677447000,-200.0,0.0003,7]
[426613688,1782677447000,-428.0,0.0003,2]
[426613684,1782677447000,-5000.0,0.0003,2]
[426613685,1782677447000,-1332.7026674,0.0003,2]
[426613691,1782677447000,-165.0,0.0003,7]
[426613692,1782677447000,-165.0,0.0003,7]
[426613686,1782677447000,-165.46,0.0003,5]
[426613693,1782677447000,-167.80511067,0.0003,7]
[426613687,1782677447000,-197.0,0.0003,2]
[426613694,1782677447000,-189.0,0.0003,2]
[426613696,1782677447000,-280.64,0.00030002,15]
[426613706,1782677447000,-2189.96693478,0.00030136,2]
[426613695,1782677447000,-225.0,0.0003,2]
[426613698,1782677447000,-280.64,0.00030052,15]
[426613697,1782677447000,-175.4,0.00030012,15]
[426613705,1782677447000,-175.4,0.00030112,15]
[426613700,1782677447000,-1119.370599,0.0003008,5]
[426613703,1782677447000,-1000.0,0.000301,5]
[426613701,1782677447000,-600.97,0.00030094,2]
[426613704,1782677447000,-280.64,0.00030102,15]
[426613735,1782677447000,-175.4,0.00030912,15]
[426613734,1782677447000,-175.4,0.00030862,15]
[426613739,1782677447000,-156.0,0.00030995,2]
[426613782,1782677447000,-204.0,0.00033,2]
[426613773,1782677447000,-600.97,0.00032012,2]
[426613770,1782677447000,-428.0,0.00032,2]
[426613772,1782677447000,-225.0,0.00032,2]
[426613778,1782677447000,-600.97,0.00032834,2]
[426613780,1782677447000,-216.60008,0.00033,2]
[426613777,1782677447000,-600.97,0.0003256,2]
[426613776,1782677447000,-151.0,0.000325,18]
[426613779,1782677447000,-151.0,0.000329,18]
[426613775,1782677447000,-600.97,0.00032286,2]
[426613774,1782677447000,-151.0,0.000321,14]
[426613784,1782677447000,-200.0,0.00033091,2]
[426613785,1782677447000,-600.97,0.00033108,2]
[426613783,1782677447000,-234.0,0.00033,2]
[426613789,1782677447000,-154.44,0.00033245,120]
[426613791,1782677447000,-154.44,0.00033245,120]
[426613788,1782677447000,-154.44,0.00033245,120]
[426613790,1782677447000,-154.44,0.00033245,120]
[426613792,1782677447000,-154.44,0.00033245,120]
[426613797,1782677447000,-200.0,0.00033671,2]
[426613796,1782677447000,-600.97,0.00033656,2]
[426613794,1782677447000,-600.97,0.00033382,2]
[426613793,1782677447000,-221963.8751813,0.00033333,2]
[426613795,1782677447000,-186.0,0.00033581,2]
[426613799,1782677447000,-182.88015374,0.00033809,2]
[426613798,1782677447000,-150.56219299,0.000338,2]
[426613800,1782677447000,-197.87967711,0.00033809,2]
[426613740,1782677447000,-197.0,0.00031,2]
[426613786,1782677447000,-380.77656912,0.00033245,120]
[426613781,1782677447000,-433.0,0.00033,2]
[426613787,1782677447000,-154.44,0.00033245,120]
[426613767,1782677447000,-311.08455269,0.00031846,2]
[426613771,1782677447000,-189.0,0.00032,2]
[426613738,1782677447000,-175.4,0.00030962,15]
[426613742,1782677447000,-189.0,0.00031,2]
[426613737,1782677447000,-460.0,0.00030958,2]
[426613736,1782677447000,-600.97,0.00030916,2]
[426613741,1782677447000,-428.0,0.00031,2]
[426613743,1782677447000,-225.0,0.00031,2]
[426613758,1782677447000,-175.4,0.00031512,15]
[426613748,1782677447000,-600.97,0.0003119,2]
[426613749,1782677447000,-175.4,0.00031212,15]
[426613747,1782677447000,-175.4,0.00031162,15]
[426613755,1782677447000,-175.4,0.00031412,15]
[426613751,1782677447000,-175.4,0.00031312,15]
[426613754,1782677447000,-545.7599,0.000314,20]
[426613756,1782677447000,-175.4,0.00031462,15]
[426613746,1782677447000,-175.4,0.00031112,15]
[426613765,1782677447000,-175.4,0.00031762,15]
[426613766,1782677447000,-175.4,0.00031812,15]
[426613764,1782677447000,-600.97,0.00031738,2]
[426613768,1782677447000,-175.4,0.00031862,15]
[426613757,1782677447000,-600.97,0.00031464,2]
[426613759,1782677447000,-175.4,0.00031562,15]
[426613762,1782677447000,-175.4,0.00031662,15]
[426613769,1782677447000,-197.0,0.00032,2]
[426613761,1782677447000,-175.4,0.00031612,15]
[426613760,1782677447000,-151.0,0.000316,16]
[426613750,1782677447000,-175.4,0.00031262,15]
[426613752,1782677447000,-193.46200047,0.00031325,30]
[426613753,1782677447000,-175.4,0.00031362,15]
[426613763,1782677447000,-175.4,0.00031712,15]
[426613839,1782677448000,-174.85021205,0.00035447,2]
[426613850,1782677448000,-188.21084709,0.00035839,2]
[426613837,1782677448000,-528.73256015,0.00035446,2]
[426613848,1782677448000,-290.0,0.00035648,2]
[426613849,1782677448000,-470.0,0.0003565,2]
[426613832,1782677448000,-198.59688825,0.00035442,2]
[426613838,1782677448000,-516.64830363,0.00035447,2]
[426613830,1782677448000,-231.8208786,0.0003543,2]
[426613833,1782677448000,-548.64046123,0.00035442,2]
[426613834,1782677448000,-593.63903133,0.00035442,2]
[426613829,1782677448000,-200.0,0.00035411,2]
[426613845,1782677448000,-550.0,0.00035648,2]
[426613847,1782677448000,-260.0,0.00035648,2]
[426613841,1782677448000,-240.0,0.00035648,2]
[426613862,1782677448000,-791.51870844,0.00035877,2]
[426613846,1782677448000,-210.0,0.00035648,2]
[426613843,1782677448000,-260.0,0.00035648,2]
[426613844,1782677448000,-1000.0,0.00035648,2]
[426613842,1782677448000,-460.0,0.00035648,2]
[426613852,1782677448000,-487.02432626,0.00035839,2]
[426613851,1782677448000,-224.83455499,0.00035839,2]
[426613863,1782677448000,-996.09449305,0.00035877,2]
[426613854,1782677448000,-609.20356626,0.00035839,2]
[426613855,1782677448000,-325.62855248,0.00035839,2]
[426613853,1782677448000,-175.27406447,0.00035839,2]
[426613857,1782677448000,-226.75344814,0.00035839,2]
[426613856,1782677448000,-346.50764812,0.00035839,2]
[426613861,1782677448000,-731.52061498,0.00035877,2]
[426613840,1782677448000,-420.0,0.00035648,2]
[426613828,1782677448000,-173.25382406,0.00035404,2]
[426613858,1782677448000,-463.6417572,0.00035865,2]
[426613836,1782677448000,-213.43845054,0.00035446,2]
[426613809,1782677448000,-600.97,0.00034204,2]
[426613810,1782677448000,-200.0,0.00034251,2]
[426613802,1782677448000,-176.24418672,0.00033813,2]
[426613804,1782677448000,-159.7,0.000339,120]
[426613805,1782677448000,-600.97,0.0003393,2]
[426613801,1782677448000,-249.02362326,0.00033809,2]
[426613803,1782677448000,-172.21610121,0.00033814,2]
[426613806,1782677448000,-593.38001292,0.00033971,6]
[426613807,1782677448000,-300.0,0.00034,120]
[426613808,1782677448000,-576.99431739,0.00034077,2]
[426613811,1782677448000,-600.97,0.00034478,2]
[426613816,1782677448000,-365.76030749,0.00034788,2]
[426613818,1782677448000,-498.04724653,0.00034788,2]
[426613831,1782677448000,-451.68657897,0.00035432,2]
[426613814,1782677448000,-600.97,0.00034752,2]
[426613815,1782677448000,-301.12438598,0.00034779,2]
[426613819,1782677448000,-352.48837343,0.00034793,2]
[426613820,1782677448000,-344.43220242,0.00034793,2]
[426613822,1782677448000,-159.7,0.000349,120]
[426613813,1782677448000,-203.06785542,0.00034752,2]
[426613823,1782677448000,-911.4003137,0.00035,120]
[426613812,1782677448000,-177.892,0.00034495,2]
[426613821,1782677448000,-200.0,0.00034831,2]
[426613825,1782677448000,-601.12179809,0.00035299,2]
[426613835,1782677448000,-747.07086979,0.00035442,2]
[426613827,1782677448000,-406.13571084,0.00035404,2]
[426613826,1782677448000,-243.51216313,0.00035404,2]
[426613824,1782677448000,-600.97,0.00035026,2]
[426613817,1782677448000,-395.75935422,0.00034788,2]
[426613859,1782677448000,-602.24877196,0.00035867,2]
[426613919,1782677448000,-593.38001292,0.00039042,11]
[426613864,1782677448000,-181.36758794,0.00035877,2]
[426613893,1782677448000,-903.37315794,0.00036956,2]
[426613900,1782677448000,-1053.93535093,0.00037935,2]
[426613906,1782677448000,-300.0,0.00038,120]
[426613902,1782677448000,-1743.16536284,0.00037945,2]
[426613899,1782677448000,-200.0,0.00037731,2]
[426613903,1782677448000,-15351.45413007,0.0003798,120]
[426613901,1782677448000,-1280.16107621,0.00037945,2]
[426613907,1782677448000,-319.79,0.000383,120]
[426613898,1782677448000,-200.0,0.00037151,2]
[426613904,1782677448000,-1446.0,0.00038,14]
[426613910,1782677448000,-319.79,0.000388,120]
[426613909,1782677448000,-12171.98999303,0.0003861,4]
[426613908,1782677448000,-1591.0,0.00038356,60]
[426613890,1782677448000,-200.0,0.00036571,2]
[426613905,1782677448000,-100000.0,0.00038,10]
[426613917,1782677448000,-189.0,0.00039,30]
[426613918,1782677448000,-225.0,0.00039,30]
[426613912,1782677448000,-671.21,0.00038904,60]
[426613920,1782677448000,-319.79,0.000393,120]
[426613921,1782677448000,-1204.49754392,0.00039404,2]
[426613911,1782677448000,-100000.0,0.000388,10]
[426613914,1782677448000,-197.0,0.00039,30]
[426613916,1782677448000,-428.0,0.00039,30]
[426613925,1782677448000,-83732.91342673,0.000395,120]
[426613915,1782677448000,-155.0,0.00039,30]
[426613913,1782677448000,-5018.74410018,0.00039,2]
[426613924,1782677448000,-1591.0,0.00039452,60]
[426613860,1782677448000,-397.1937765,0.00035877,2]
[426613922,1782677448000,-1463.04122995,0.00039415,2]
[426613891,1782677448000,-186.0,0.00036581,2]
[426613923,1782677448000,-1992.18898611,0.00039415,2]
[426613888,1782677448000,-1245.11811632,0.00036312,2]
[426613889,1782677448000,-881.22093359,0.00036317,2]
[426613870,1782677448000,-704.97674687,0.00035882,2]
[426613867,1782677448000,-354.17799318,0.00035882,2]
[426613866,1782677448000,-426.87690107,0.00035881,2]
[426613865,1782677448000,-197.1794358,0.00035877,2]
[426613869,1782677448000,-272.26982697,0.00035882,2]
[426613868,1782677448000,-204.14769507,0.00035882,2]
[426613872,1782677448000,-366.50560107,0.00035882,2]
[426613873,1782677448000,-688.86440484,0.00035882,2]
[426613874,1782677448000,-396.64266492,0.00035882,2]
[426613877,1782677448000,-384.22474282,0.00035882,2]
[426613876,1782677448000,-388.84787881,0.00035882,2]
[426613878,1782677448000,-366.75299353,0.00035882,2]
[426613882,1782677448000,-300.0,0.00036,120]
[426613871,1782677448000,-339.54177598,0.00035882,2]
[426613884,1782677448000,-170.0,0.00036087,2]
[426613875,1782677448000,-382.65221659,0.00035882,2]
[426613886,1782677448000,-914.40076872,0.00036312,2]